[Event "US Masters 2024"]
[Site "Charlotte"]
[Date "2024.11.29"]
[Round "4.1"]
[White "Caruana, Fabiano"]
[Black "Can, Isik"]
[Result "1-0"]
[ECO "C24"]
[WhiteElo "2805"]
[BlackElo "2508"]
[Annotator "TA"]
[PlyCount "55"]
[EventDate "2024.09.23"]
[EventType "swiss"]
[EventCountry "USA"]
[SourceTitle "playchess.com"]
[Source "ChessBase"]
[SourceQuality "1"]
[TimeControl "5400+30"]

{[%evp 12,55,66,59,59,14,30,34,24,4,36,39,26,32,19,19,31,21,31,0,59,50,152,170,203,212,199,227,216,226,214,243,418,391,417,416,476,385,412,374,365,340,373,383,1034,1043]} 1. e4 {[%emt 0:01:22]} e5 {[%emt 0:08:45]} 2. Nf3 {[%emt 0:00:06]} Nc6 {[%emt 0:00:06]} 3. Bc4 {[%emt 0:00:10]} Nf6 {[%emt 0:00:05]} 4. d3 {[%emt 0:00:03]} d5 {[%emt 0:00:03]} 5. exd5 {[%emt 0:00:06]} Nxd5 {[%emt 0:00:06]} 6. O-O {[%emt 0:00:07]} Be7 {[%emt 0:00:03]} 7. Re1 {[%emt 0:01:12]} f6 {[%emt 0:00:10]} 8. a3 {[%emt 0:01:31]} Bg4 {[%emt 0:11:57]} 9. h3 {[%emt 0:00:37]} Bh5 {[%emt 0:00:40] White is slightly better.} 10. Nc3 {[%emt 0:00:20]} Nb6 {[%emt 0:03:25]} 11. Ba2 {[%emt 0:05:49]} Bf7 {[%emt 0:14:18]} 12. Bxf7+ {[%emt 0:00:30]} Kxf7 {[%emt 0:00:01]} 13. Be3 {[%emt 0:15:58]} Qd7 {[%emt 0:12:56]} 14. b4 {[%emt 0:06:10][%cal Bb2b4,Bb4b5][%mdl 32]} Rhe8 {[%emt 0:01:58]} 15. Ne4 {[%emt 0:01:10]} Rad8 {[%emt 0:04:52]} (15... a5 $11) 16. b5 $14 {[%emt 0:08:50]} Na5 {[%emt 0:08:59] [#]} ({Better is} 16... Nb8 $14) 17. Qb1 $1 $16 {[%emt 0:10:32] Hoping for Bd2. White is more active.} Nc8 {[%emt 0:01:26]} 18. Bd2 {[%emt 0:09:37]} b6 {[%emt 0:00:08][%cal Bb7b6,Bb6a5][%mdl 32]} 19. Bxa5 {[%emt 0:00:45]} bxa5 {[%emt 0:00:02] [#]} 20. d4 $1 {[%emt 0:00:14][%mdl 512]} Kg8 {[%emt 0:10:32]} (20... Kf8 21. dxe5) 21. dxe5 {[%emt 0:01:52]} fxe5 $2 {[%emt 0:00:31]} (21... Kh8 22. exf6 Bxf6) 22. Nxe5 $18 {[%emt 0:00:41]} Qd5 {[%emt 0:00:13]} 23. Nc6 {[%emt 0:00:50] Excellent horsemanship.} Rd7 {[%emt 0:00:02]} 24. c4 {[%emt 0:00:21]} (24. Nxa5 Nb6 25. Nc6 Kh8 $18) 24... Qf5 {[%emt 0:00:09] Black is weak on the light squares} 25. Qb3 {[%emt 0:03:28]} (25. Nxa5 Rf8 26. Qa2 Kh8 $18) 25... Rf8 {[%emt 0:01:20]} 26. Ra2 {[%emt 0:02:00]} (26. Nxa5 Bh4 27. Re2 (27. c5+ Kh8 $18) 27... Kh8 $18) 26... Kh8 {[%emt 0:02:03]} 27. Rae2 {[%emt 0:01:07]} ({Don't play} 27. Nxa5 Bh4 28. Ng3 Bxg3 29. Qxg3 a6) 27... Bc5 $2 {[%emt 0:00:17]} (27... Bd6 28. c5 (28. Nxa5 Re7 $18) 28... Bf4) 28. g4 {[%emt 0:00:58] Weighted Error Value: White=0.10 (very precise) /Black=0.33.  Mistake:       	---       	Black=4      Inaccurate:     	White=2     	Black=1      OK:         	White=11    	Black=7      Best:        	White=2     	---        Strong:       	White=1     	---        Brilliant:      	White=1     	---} 1-0

[Event "US Masters 2024"]
[Site "Charlotte"]
[Date "2024.11.29"]
[Round "4.2"]
[White "Oparin, Grigoriy"]
[Black "Samant Aditya S"]
[Result "1/2-1/2"]
[ECO "B12"]
[WhiteElo "2653"]
[BlackElo "2478"]
[Annotator "TA"]
[PlyCount "58"]
[EventDate "2024.09.23"]
[EventType "swiss"]
[EventCountry "USA"]
[SourceTitle "playchess.com"]
[Source "ChessBase"]
[SourceQuality "1"]
[TimeControl "5400+30"]

{[%evp 10,58,0,-29,15,0,26,12,16,12,20,18,34,12,27,27,31,20,18,0,0,0,0,-14,0,-21,4,16,5,-9,-10,-6,-9,-10,-19,-14,-10,-12,0,0,0,0,0,0,0,0,0,0,0,0,0]} 1. e4 {[%emt 0:02:26]} c6 {[%emt 0:00:40]} 2. d4 {[%emt 0:00:14]} d5 {[%emt 0:00:05]} 3. e5 {[%emt 0:00:04]} Bf5 {[%emt 0:00:07]} 4. c4 {[%emt 0:00:23]} e6 {[%emt 0:00:39]} 5. Nc3 {[%emt 0:00:06]} Ne7 {[%emt 0:10:03]} 6. Nge2 {[%emt 0:00:37]} Nd7 {[%emt 0:06:43]} 7. Ng3 {[%emt 0:00:12]} dxc4 {[%emt 0:03:11]} 8. Bxc4 {[%emt 0:01:09]} Nb6 {[%emt 0:02:02]} 9. Bb3 {[%emt 0:04:21]} Bg6 {[%emt 0:02:40]} 10. h4 {[%emt 0:01:49][%cal Bh2h4,Bh4h5][%mdl 32]} h6 {[%emt 0:00:49]} 11. O-O {[%emt 0:05:40]} Qd7 {[%emt 0:05:27]} 12. h5 {[%emt 0:09:23]} Bh7 {[%emt 0:00:09]} 13. Be3 {[%emt 0:00:22]} Ned5 {[%emt 0:09:03] The position is equal.} 14. Qf3 {[%emt 0:08:03]} Be7 {[%emt 0:05:36]} 15. Nce4 {[%emt 0:04:41]} O-O {[%emt 0:04:49]} 16. Bd2 {[%emt 0:13:47]} Kh8 {[%emt 0:04:35]} 17. Rad1 {[%emt 0:05:16]} f6 {[%emt 0:04:35] [#] ...fxe5 would now be deadly.} 18. Nc5 {[%emt 0:02:55]} Qc8 {[%emt 0:02:06]} ({Much worse is} 18... Bxc5 $6 19. dxc5 fxe5 20. Qe2 $18) 19. Qe2 {[%emt 0:07:59]} fxe5 {[%emt 0:00:25]} 20. Qxe5 {[%emt 0:00:08]} Nd7 {[%emt 0:07:03]} 21. Qxe6 {[%emt 0:02:55]} Nxc5 {[%emt 0:00:14]} 22. Qxc8 {[%emt 0:00:03]} Raxc8 {[%emt 0:00:06]} 23. dxc5 {[%emt 0:00:04]} Bd3 {[%emt 0:13:45][%cal Oe7c5]} 24. Bxd5 {[%emt 0:00:08]} cxd5 {[%emt 0:01:15]} 25. Rfe1 {[%emt 0:06:42]} Bxc5 {[%emt 0:00:11]} 26. Be3 {[%emt 0:00:06]} Bb4 {[%emt 0:00:44] [#] ...Rc2 is the strong threat. This pair of bishops is nice.} 27. Bd2 {[%emt 0:00:03]} Bc5 {[%emt 0:00:04]} 28. Be3 {[%emt 0:00:03]} Bb4 {[%emt 0:00:17] And now ...Rc2 would win.} 29. Bd2 {[%emt 0:00:04]} Bc5 {[%emt 0:00:04] An uneventful encounter.   Weighted Error Value: White=0.08 (flawless) /Black=0.08 (flawless) .  Inaccurate:     	---       	Black=1      OK:         	White=9     	Black=14     Best:        	White=2     	---} 1/2-1/2

[Event "US Masters 2024"]
[Site "Charlotte"]
[Date "2024.11.29"]
[Round "4.3"]
[White "Moradiabadi, Elshan"]
[Black "Donchenko, Alexander"]
[Result "1/2-1/2"]
[ECO "B51"]
[WhiteElo "2515"]
[BlackElo "2617"]
[Annotator "RC"]
[PlyCount "105"]
[EventDate "2024.09.23"]
[EventType "swiss"]
[EventCountry "USA"]
[SourceTitle "playchess.com"]
[Source "ChessBase"]
[SourceQuality "1"]
[TimeControl "5400+30"]

1. e4 {[%emt 0:06:41]} c5 {[%emt 0:00:25]} 2. Nf3 {[%emt 0:00:02]} d6 {[%emt 0:00:06]} 3. Bb5+ {[%emt 0:00:03]} Nd7 {[%emt 0:00:41]} 4. Ba4 {[%emt 0:00:20]} Ngf6 {[%emt 0:00:40]} 5. O-O {[%emt 0:00:12]} e6 {[%emt 0:00:59]} 6. d3 {[%emt 0:00:03]} Be7 {[%emt 0:01:13]} 7. c4 {[%emt 0:00:01]} O-O {[%emt 0:00:49]} 8. Nc3 {[%emt 0:00:01]} a6 {[%emt 0:00:53]} 9. Qe2 {[%emt 0:00:02]} h6 {[%emt 0:03:03]} 10. Bd2 {[%emt 0:09:26]} Qc7 {[%emt 0:05:41]} 11. Ne1 {[%emt 0:09:39]} Ne5 {[%emt 0:04:39]} 12. f4 {[%emt 0:02:36]} Nc6 {[%emt 0:00:07]} 13. Bxc6 {[%emt 0:09:54]} Qxc6 {[%emt 0:00:42]} 14. g4 {[%emt 0:00:03]} Nh7 {[%emt 0:10:59]} 15. a4 {[%emt 0:02:09]} Bd7 {[%emt 0:04:31]} 16. Nf3 {[%emt 0:08:55]} b5 {[%emt 0:04:55]} 17. axb5 {[%emt 0:08:00]} axb5 {[%emt 0:00:43]} 18. Nxb5 {[%emt 0:00:01]} Qb6 {[%emt 0:01:22]} 19. Nc3 {[%emt 0:00:07]} Rxa1 {[%emt 0:01:33]} 20. Rxa1 {[%emt 0:00:30]} Qxb2 {[%emt 0:00:30]} 21. Rb1 {[%emt 0:00:30]} Qb6 {[%emt 0:00:30]} 22. Ra1 {[%emt 0:42:15]} Qb2 {[%emt 0:00:33]} 23. Rb1 {[%emt 0:00:00]} Qa3 {[%emt 0:00:09]} 24. g5 {[%emt 0:00:00]} hxg5 {[%emt 0:03:08]} 25. Rb7 {[%emt 0:00:00]} Rd8 {[%emt 0:10:26]} 26. fxg5 {[%emt 0:00:00]} Bf8 {[%emt 0:01:29]} 27. Nd1 {[%emt 0:00:00]} Qa8 {[%emt 0:02:37]} 28. Rb1 {[%emt 0:00:00]} d5 {[%emt 0:02:01]} 29. Bf4 {[%emt 0:00:00]} dxe4 {[%emt 0:03:01]} 30. dxe4 {[%emt 0:00:00]} Bc6 {[%emt 0:00:52]} 31. Nf2 {[%emt 0:00:00]} Be7 {[%emt 0:02:50]} 32. h4 {[%emt 0:00:00]} f6 {[%emt 0:01:18]} 33. g6 {[%emt 0:00:00]} Nf8 {[%emt 0:00:03]} 34. h5 {[%emt 0:00:00]} e5 {[%emt 0:00:45]} 35. Bc1 {[%emt 0:00:00]} Ne6 {[%emt 0:02:47]} 36. h6 {[%emt 0:00:00]} Rb8 {[%emt 0:07:26]} 37. Nxe5 {[%emt 0:00:00]} fxe5 {[%emt 0:00:31]} 38. Qh5 {[%emt 0:00:00]} Rxb1 {[%emt 0:19:42]} 39. hxg7 {[%emt 0:00:00]} Rxc1+ {[%emt 0:00:04]} 40. Kh2 {[%emt 0:00:00]} Rh1+ {[%emt 0:00:18]} 41. Kxh1 {[%emt 0:02:44]} Bxe4+ {[%emt 0:00:07]} 42. Kh2 {[%emt 0:01:57]} Kxg7 {[%emt 0:00:03]} 43. Qh7+ {[%emt 0:00:04]} Kf6 {[%emt 0:00:05]} 44. Qf7+ {[%emt 0:00:01]} Kg5 {[%emt 0:00:07]} 45. Qxe7+ {[%emt 0:00:04]} Kh5 {[%emt 0:03:04]} 46. Qxe6 {[%emt 0:02:37]} Bxg6 {[%emt 0:00:10]} 47. Qxe5+ {[%emt 0:00:14]} Kh6 {[%emt 0:00:57]} 48. Ng4+ {[%emt 0:00:27]} Kh7 {[%emt 0:00:04]} 49. Nf6+ {[%emt 0:02:22]} Kh6 {[%emt 0:00:12]} 50. Qe3+ {[%emt 0:01:33]} Kg7 {[%emt 0:00:01]} 51. Qe7+ {[%emt 0:00:12]} Kh6 {[%emt 0:01:59]} 52. Ng4+ {[%emt 0:00:46]} Kh5 {[%emt 0:00:02]} 53. Nf6+ {[%emt 0:01:02]} 1/2-1/2

[Event "US Masters 2024"]
[Site "Charlotte"]
[Date "2024.11.29"]
[Round "4.4"]
[White "Mitrabha, Guha"]
[Black "Theodorou, Nikolas"]
[Result "0-1"]
[ECO "A20"]
[WhiteElo "2511"]
[BlackElo "2612"]
[Annotator "TA"]
[PlyCount "88"]
[EventDate "2024.09.23"]
[EventType "swiss"]
[EventCountry "USA"]
[SourceTitle "playchess.com"]
[Source "ChessBase"]
[SourceQuality "1"]
[TimeControl "5400+30"]

{[%evp 13,88,8,12,0,19,25,27,16,29,32,70,60,83,52,52,52,59,24,22,0,14,0,29,0,10,0,0,0,16,-10,0,-104,-104,-83,-55,-52,-72,-63,-49,-31,0,0,0,-160,-52,-45,-23,-46,-34,-125,-126,-181,-171,-164,-167,-157,-145,-303,-297,-299,-267,-294,-279,-280,-269,-273,-271,-550,-519,-612,-612,-587,-593,-999,-719,-850,-820]} 1. c4 {[%emt 0:12:46]} e5 {[%emt 0:00:18]} 2. g3 {[%emt 0:00:31]} c6 {[%emt 0:00:29]} 3. d4 {[%emt 0:00:23]} Bb4+ {[%emt 0:00:42]} 4. Bd2 {[%emt 0:00:22]} Bxd2+ {[%emt 0:00:06]} 5. Qxd2 {[%emt 0:00:03]} d6 {[%emt 0:00:05]} 6. Nc3 {[%emt 0:03:02]} Nf6 {[%emt 0:00:29]} 7. Bg2 {[%emt 0:00:35]} O-O {[%emt 0:00:32]} 8. d5 {[%emt 0:10:42]} Qe7 {[%emt 0:01:54]} 9. e3 {[%emt 0:04:23]} e4 {[%emt 0:04:19]} 10. Nge2 {[%emt 0:02:11] White has an edge.} c5 {[%emt 0:14:50]} 11. h3 {[%emt 0:07:12]} h5 {[%emt 0:00:05][%cal Bh7h5,Bh5h4][%mdl 32]} 12. Qc2 {[%emt 0:01:11]} Re8 {[%emt 0:01:06]} 13. O-O-O {[%emt 0:08:12][%cal Og3g4]} Qe5 {[%emt 0:07:41] [#]} 14. g4 $1 {[%emt 0:07:48]} h4 {[%emt 0:00:09] Inhibits Ng3.} 15. g5 {[%emt 0:05:45]} Qxg5 {[%emt 0:00:30]} 16. Nxe4 {[%emt 0:02:41]} Nxe4 {[%emt 0:01:10]} (16... Qxg2 $2 {loses.} 17. Nxf6+ gxf6 18. Rhg1 $18) 17. Bxe4 {[%emt 0:00:02]} Nd7 {[%emt 0:00:52]} 18. Nc3 {[%emt 0:02:21]} Qh6 {[%emt 0:02:24]} 19. Rdg1 {[%emt 0:01:52]} Nf6 {[%emt 0:02:50] Hoping for ...Nxe4.} 20. Bd3 {[%emt 0:00:24]} a6 {[%emt 0:00:05] Dodges Nb5} 21. Qd2 {[%emt 0:01:13]} b5 {[%emt 0:00:55]} 22. f4 {[%emt 0:00:43]} (22. cxb5 $11 {keeps the balance.} axb5 23. Bxb5) 22... b4 {[%emt 0:03:01]} 23. Nd1 {[%emt 0:00:05]} Ne4 {[%emt 0:01:58] Dodges Nf2} 24. Bxe4 {[%emt 0:04:42]} Rxe4 {[%emt 0:00:04]} 25. Qd3 {[%emt 0:01:26]} Bf5 {[%emt 0:05:22] Threatens to win with ...Qf6.} 26. Rg5 $1 {[%emt 0:00:06]} Bh7 {[%emt 0:13:39][%cal Oe4f4] aiming for ...Rxf4!} 27. Rhg1 $1 {[%emt 0:10:15]} Rxf4 {[%emt 0:00:48]} 28. Qe2 {[%emt 0:00:05]} (28. Rxg7+ $11 Qxg7 29. Rxg7+ Kxg7 30. Qe2) 28... Rf5 {[%emt 0:03:10]} (28... Re8 $17 {...Bg6 is the strong threat.} 29. Rxg7+ Kf8) 29. Rxg7+ $15 {[%emt 0:01:51]} Kh8 {[%emt 0:07:58][%cal Oh7g6]} 30. R7g4 {[%emt 0:00:41]} Rg8 $1 {[%emt 0:00:03]} 31. Qe1 {[%emt 0:02:25] [#]} (31. Rxg8+ $15 Bxg8 32. a3) 31... Rfg5 $1 $17 {[%emt 0:00:44]} 32. Rxg5 {[%emt 0:02:51]} (32. Qf1 $17) 32... Rxg5 $19 {[%emt 0:00:03]} 33. Qf2 {[%emt 0:01:08]} Rxg1 {[%emt 0:04:57]} 34. Qxg1 {[%emt 0:00:01][%mdl 4096] Endgame. KQB-KQN} Bd3 {[%emt 0:07:14]} 35. b3 {[%emt 0:01:24] [#] This costs White the game.} (35. Qg4 $17) 35... Bf5 $1 {[%emt 0:02:13]} 36. Qf1 {[%emt 0:00:49]} Qg5 {[%emt 0:00:45]} 37. Kd2 {[%emt 0:00:44]} Kg7 {[%emt 0:00:33]} 38. Nf2 {[%emt 0:00:41]} Qf6 {[%emt 0:01:40] Repels Qa1. Strongly threatening ...Bg6.} 39. Nd1 {[%emt 0:00:20]} Qe5 {[%emt 0:00:52]} 40. Qf2 $2 {[%emt 0:00:58]} (40. Qf3) 40... Qe4 {[%emt 0:00:56] Black is clearly winning.} ({Not} 40... Bxh3 41. Qxh4 Bd7 42. Ke2 $11) 41. Qg1+ {[%emt 0:00:12]} Bg6 {[%emt 0:05:35]} 42. Ke1 {[%emt 0:00:05]} Qf3 {[%emt 0:01:01]} 43. Qh2 {[%emt 0:04:34]} Qg3+ {[%emt 0:01:27]} 44. Qf2 {[%emt 0:01:11]} Qxh3 {[%emt 0:00:51] Weighted Error Value: White=0.53/Black=0.18 (very precise) .  Mistake:       	White=6     	Black=1      Inaccurate:     	White=4     	Black=3      OK:         	White=14    	Black=12     Best:        	White=1     	Black=2      Strong:       	White=2     	Black=3} 0-1

[Event "US Masters 2024"]
[Site "Charlotte"]
[Date "2024.11.29"]
[Round "4.5"]
[White "Nyzhnyk, Illya"]
[Black "Preotu, Razvan"]
[Result "1/2-1/2"]
[ECO "B54"]
[WhiteElo "2576"]
[BlackElo "2475"]
[Annotator "TA"]
[PlyCount "49"]
[EventDate "2024.09.23"]
[EventType "swiss"]
[EventCountry "USA"]
[SourceTitle "playchess.com"]
[Source "ChessBase"]
[SourceQuality "1"]
[TimeControl "5400+30"]

{[%evp 10,49,18,23,17,21,20,18,22,20,23,29,28,29,43,47,43,56,47,42,41,46,60,33,43,45,37,34,54,72,54,12,14,24,28,24,12,12,18,0,0,0]} 1. Nf3 {[%emt 0:00:04]} c5 {[%emt 0:00:10]} 2. e4 {[%emt 0:00:26]} d6 {[%emt 0:00:28]} 3. Bb5+ {[%emt 0:00:07]} Bd7 {[%emt 0:00:36]} 4. c4 {[%emt 0:00:05]} Nc6 {[%emt 0:01:20]} 5. d4 {[%emt 0:02:56]} cxd4 {[%emt 0:00:19]} 6. Nxd4 {[%emt 0:00:03]} g6 {[%emt 0:00:56]} 7. Nc3 {[%emt 0:00:27][%cal Oc4c5]} Bg7 {[%emt 0:00:11]} 8. Be3 {[%emt 0:00:10]} Nf6 {[%emt 0:00:17][%cal Bg8f6,Bf6d7,Bd7c5][%mdl 32]} 9. h3 {[%emt 0:01:51] Inhibits Ng4.} O-O {[%emt 0:01:01]} 10. O-O {[%emt 0:00:04]} a6 {[%emt 0:05:23]} 11. Bxc6 {[%emt 0:01:15]} Bxc6 {[%emt 0:04:14]} 12. Qd3 {[%emt 0:24:36]} Nd7 {[%emt 0:02:37]} 13. Rfd1 {[%emt 0:00:44]} Nc5 {[%emt 0:01:50]} 14. Qc2 {[%emt 0:00:58] [#] Strongly threatening Nxc6.} Rc8 {[%emt 0:17:08]} 15. Rac1 {[%emt 0:09:57]} Bd7 {[%emt 0:02:37][%cal Bc6d7,Bd7e6,Be6b3][%mdl 32]} 16. Qe2 {[%emt 0:00:12]} Ne6 {[%emt 0:10:36]} 17. Nxe6 {[%emt 0:06:09]} Bxe6 {[%emt 0:04:08]} 18. c5 {[%emt 0:00:23]} Qa5 {[%emt 0:00:14]} 19. cxd6 {[%emt 0:01:37]} exd6 {[%emt 0:00:05]} 20. a3 {[%emt 0:02:13]} Rc6 {[%emt 0:06:05]} 21. Bd4 {[%emt 0:12:43]} Bb3 {[%emt 0:00:23] This pair of bishops is nice.} 22. Rd2 {[%emt 0:00:08]} Bh6 {[%emt 0:00:16][%cal Of8e8]} 23. Be3 {[%emt 0:00:51] The position is equal.} Bg7 {[%emt 0:00:07]} 24. Bd4 {[%emt 0:00:26]} Bh6 {[%emt 0:00:12]} 25. Be3 {[%emt 0:00:09] Weighted Error Value: White=0.06 (flawless) /Black=0.03 (flawless) .  Inaccurate:     	White=2     	---        OK:         	White=10    	Black=8      Best:        	White=2     	---} 1/2-1/2

[Event "US Masters 2024"]
[Site "Charlotte"]
[Date "2024.11.29"]
[Round "4.6"]
[White "Escalante Ramirez, Brian"]
[Black "Burke, John M"]
[Result "0-1"]
[ECO "A45"]
[WhiteElo "2476"]
[BlackElo "2573"]
[Annotator "TA"]
[PlyCount "58"]
[EventDate "2024.09.23"]
[EventType "swiss"]
[EventCountry "USA"]
[SourceTitle "playchess.com"]
[Source "ChessBase"]
[SourceQuality "1"]
[TimeControl "5400+30"]

{[%evp 9,58,14,6,6,12,-7,-2,-19,-30,-15,-29,-37,-31,-60,-32,-29,-19,-39,-29,-20,-22,-39,-32,-56,-51,-55,-53,-55,-34,-37,-23,-152,-172,-193,-202,-195,-176,-190,-178,-204,-188,-197,-197,-320,-316,-320,-320,-313,-310,-299,-301]} 1. d4 {[%emt 0:13:29]} Nf6 {[%emt 0:00:17]} 2. Bf4 {[%emt 0:00:05]} g6 {[%emt 0:01:07]} 3. Nd2 {[%emt 0:00:05]} c5 {[%emt 0:04:32]} 4. dxc5 {[%emt 0:01:06]} Na6 {[%emt 0:04:25][%cal Bb8a6,Ba6c5,Bc5e6,Be6f4][%mdl 32]} 5. e4 {[%emt 0:07:13][%cal Be2e4,Be4e5][%mdl 32]} Nxc5 {[%emt 0:00:08]} 6. e5 {[%emt 0:01:05]} Ne6 {[%emt 0:04:15]} 7. exf6 {[%emt 0:10:57] And now Qf3 would win.} (7. Nh3 $5 Qc7 8. exf6 Nxf4 9. fxe7 (9. Nxf4 Qxf4 10. fxe7 Bxe7 $16) 9... Bxe7 (9... Qe5+ 10. Be2 $11) 10. Nxf4 Qxf4 11. Qe2 $11) 7... Nxf4 {[%emt 0:00:06]} 8. g3 {[%emt 0:00:02] The position is equal.} Ne6 {[%emt 0:05:24]} 9. fxe7 {[%emt 0:00:11]} Qxe7 {[%emt 0:00:04]} 10. Ne2 {[%emt 0:01:27]} Bg7 {[%emt 0:01:36]} 11. Rb1 {[%emt 0:14:09]} d5 {[%emt 0:05:48]} 12. Bg2 {[%emt 0:08:26][%cal Od2b3]} O-O {[%emt 0:04:21] Strongly threatening ...Nd4.} 13. O-O {[%emt 0:00:09][%cal Od2b3]} Rd8 {[%emt 0:04:01]} 14. Re1 {[%emt 0:06:16]} Qc7 {[%emt 0:07:59]} 15. Nb3 {[%emt 0:00:02][%cal Oc2c3]} d4 {[%emt 0:01:06]} 16. Nbc1 {[%emt 0:00:02]} Bd7 {[%emt 0:02:44]} 17. Nd3 {[%emt 0:02:32]} Rac8 {[%emt 0:00:26][%cal Od7a4]} 18. Nef4 {[%emt 0:05:54]} Qxc2 {[%emt 0:09:31]} 19. Bxb7 {[%emt 0:00:07]} Rc7 {[%emt 0:01:19]} (19... Qxd1 {simplifies} 20. Rexd1 Rc2 21. Nxe6 Bxe6 22. Rbc1 Rxc1 23. Rxc1 Bxa2 24. Ba6 Be6) 20. Bd5 {[%emt 0:01:47] [#]} (20. Ba6 $11 {remains equal.}) 20... Nxf4 $1 $17 {[%emt 0:02:14]} 21. Nxf4 {[%emt 0:00:02]} Bf5 {[%emt 0:04:11] A strong pair of Bishops.} 22. Qf3 {[%emt 0:03:33]} d3 $1 {[%emt 0:01:51][%cal Od3d2]} (22... Qxb1 23. Rxb1 Bxb1 24. Be4 $17) 23. Bb3 {[%emt 0:06:00]} Qc5 {[%emt 0:06:31] aiming for ...d2.} 24. Rbd1 {[%emt 0:01:24]} d2 $36 {[%emt 0:00:30][%mdl 2048] Keeping White busy.} ({Not} 24... Bxb2 25. Nxd3 Rxd3 (25... Qc3 26. Re3 $11) 26. Rxd3 Bxd3 27. Qxd3 $11) 25. Re2 {[%emt 0:01:09]} Rcd7 {[%emt 0:01:41]} ({Worse is} 25... Bxb2 26. Nd5 Rxd5 27. Qxd5 Qxd5 28. Bxd5 $11) 26. Nd5 {[%emt 0:05:43]} (26. Ng2 {keeps fighting.}) 26... Rxd5 $19 {[%emt 0:01:08] Black has a decisive advantage.} 27. Bxd5 {[%emt 0:00:04]} Rxd5 {[%emt 0:00:14]} ({Less strong is} 27... Qxd5 28. Qxd5 Rxd5 29. Rdxd2 Rxd2 30. Rxd2 $17) 28. Rexd2 {[%emt 0:00:21]} Rxd2 {[%emt 0:00:18]} 29. Rxd2 {[%emt 0:00:05] [#]} Bxb2 $1 {[%emt 0:02:24][%mdl 512] Weighted Error Value: White=0.28 (precise) /Black=0.03 (flawless) .  Mistake:       	White=2     	---        Inaccurate:     	White=1     	Black=1      OK:         	White=10    	Black=13     Best:        	White=2     	Black=3      Strong:       	---       	Black=1} 0-1